bitfinex/quotes_BTCUSD_20220405
["timestamp","ask_amount","ask_price","bid_price","bid_amount"]
[1649180781534,0.09550891,46077.0,46076.0,7.688e-05]
[1649180781675,0.19100363,46077.0,46076.0,7.688e-05]
[1649180783129,0.09549472,46077.0,46076.0,7.688e-05]
[1649180784379,0.09836936,46077.0,46076.0,7.688e-05]
[1649180785168,0.05953937,46078.0,46077.0,0.19673871]
[1649180785358,0.10323937,46078.0,46077.0,0.19673871]
[1649180786963,0.15323937,46078.0,46077.0,0.19673871]
[1649180788265,0.15263496,46078.0,46077.0,0.19673871]
[1649180788365,0.15598247,46078.0,46077.0,0.19673871]
[1649180790351,0.45598247,46078.0,46077.0,0.19673871]
[1649180790651,0.15598247,46078.0,46077.0,0.19673871]
[1649180791949,0.15598247,46078.0,46077.0,0.19653871]
[1649180793595,0.21265267,46078.0,46077.0,0.19653871]
[1649180793993,0.51265267,46078.0,46077.0,0.19653871]
[1649180794945,0.51265267,46078.0,46077.0,0.19828692]
[1649180795246,0.21265267,46078.0,46077.0,0.19828692]
[1649180796889,0.51265267,46078.0,46077.0,0.19828692]
[1649180797285,0.61265267,46078.0,46077.0,0.19828692]
[1649180797786,1.26373267,46078.0,46077.0,0.19828692]
[1649180798238,1.31373267,46078.0,46077.0,0.19828692]
[1649180799138,1.26373267,46078.0,46077.0,0.19828692]
[1649180799693,1.16373267,46078.0,46077.0,0.19828692]
[1649180799793,0.86373267,46078.0,46077.0,0.19828692]
[1649180799890,0.80946167,46078.0,46077.0,0.19828692]
[1649180800853,0.71576167,46078.0,46077.0,0.19828692]
[1649180801452,0.71576167,46078.0,46077.0,0.52289875]
[1649180801551,0.65909147,46078.0,46077.0,0.52289875]
[1649180802404,0.65909147,46078.0,46077.0,0.19828692]
[1649180804561,0.92775451,46078.0,46077.0,0.19828692]
[1649180805857,0.65909147,46078.0,46077.0,0.19828692]
[1649180806560,0.66126966,46078.0,46077.0,0.19828692]
[1649180806862,0.66126966,46078.0,46077.0,0.46627018]
[1649180806967,0.66126966,46078.0,46077.0,0.19828692]
[1649180808063,0.89412579,46078.0,46077.0,0.19828692]
[1649180808464,0.94839679,46078.0,46077.0,0.19828692]
[1649180808563,1.24839679,46078.0,46077.0,0.19828692]
[1649180810765,0.94839679,46078.0,46077.0,0.19828692]
[1649180813263,0.94839679,46078.0,46077.0,0.1982081]
[1649180816306,1.29839679,46078.0,46077.0,0.1982081]
[1649180816407,1.34209679,46078.0,46077.0,0.1982081]
[1649180816506,1.60805585,46078.0,46077.0,0.1982081]
[1649180816604,1.34209679,46078.0,46077.0,0.1982081]
[1649180816805,1.65236531,46078.0,46077.0,0.1982081]
[1649180816907,1.75436836,46078.0,46077.0,0.1982081]
[1649180817004,1.91936836,46078.0,46077.0,0.1982081]
[1649180817309,2.34856712,46078.0,46077.0,0.1982081]
[1649180817607,2.06936836,46078.0,46077.0,0.1982081]
[1649180817908,2.46736531,46078.0,46077.0,0.1982081]
[1649180818160,2.16736531,46078.0,46077.0,0.1982081]
[1649180818308,1.85709679,46078.0,46077.0,0.1982081]
[1649180818414,1.69209679,46078.0,46077.0,0.1982081]
[1649180819041,1.85709679,46078.0,46077.0,0.1982081]
[1649180820399,1.91376622,46078.0,46077.0,0.1982081]
[1649180820499,2.22403474,46078.0,46077.0,0.1982081]
[1649180821802,2.22403474,46078.0,46077.0,0.1932081]
[1649180822452,2.22392857,46078.0,46077.0,0.1932081]
[1649180822555,2.01601573,46078.0,46077.0,0.1932081]
[1649180822700,2.22438399,46078.0,46077.0,0.1932081]
[1649180823850,2.01417186,46078.0,46077.0,0.1932081]
[1649180823950,2.22440742,46078.0,46077.0,0.1932081]
[1649180824051,1.84917126,46078.0,46077.0,0.1932081]
[1649180824150,1.86015812,46078.0,46077.0,0.1932081]
[1649180824351,2.07039328,46078.0,46077.0,0.1932081]
[1649180825053,1.8601589,46078.0,46077.0,0.1932081]
[1649180825154,2.07038916,46078.0,46077.0,0.1932081]
[1649180825907,1.75964691,46078.0,46077.0,0.1932081]
[1649180826409,1.32679078,46078.0,46077.0,0.1932081]
[1649180826513,1.32679078,46078.0,46077.0,0.4932081]
[1649180826514,1.21783292,46078.0,46077.0,0.4932081]
[1649180826713,1.43976683,46078.0,46077.0,0.1932081]
[1649180827157,0.93976683,46078.0,46077.0,0.1932081]
[1649180827358,0.8830974,46078.0,46077.0,0.1932081]
[1649180827858,0.9330974,46078.0,46077.0,0.1932081]
[1649180828262,0.71116349,46078.0,46077.0,0.1932081]
[1649180830064,0.66116349,46078.0,46077.0,0.1932081]
[1649180830199,0.8830974,46078.0,46077.0,0.1932081]
[1649180830296,0.66116349,46078.0,46077.0,0.1932081]
[1649180830907,0.18746621,46078.0,46077.0,0.1932081]
[1649180831199,0.18746621,46078.0,46077.0,0.4932081]
[1649180832203,0.23746621,46078.0,46077.0,0.4932081]
[1649180832754,0.23746621,46078.0,46077.0,0.1932081]
[1649180833003,0.24158446,46078.0,46077.0,0.1932081]
[1649180833104,0.19158446,46078.0,46077.0,0.1932081]
[1649180834353,0.6407827,46078.0,46077.0,0.1932081]
[1649180834449,0.41884966,46078.0,46077.0,0.1932081]
[1649180834748,0.68518197,46078.0,46077.0,0.1932081]
[1649180835348,0.72888197,46078.0,46077.0,0.1932081]
[1649180836550,0.46254966,46078.0,46077.0,0.1932081]
[1649180837251,0.72888197,46078.0,46077.0,0.1932081]
[1649180838733,0.50161677,46078.0,46077.0,0.1932081]
[1649180838835,0.23528446,46078.0,46077.0,0.1932081]
[1649180839941,0.19158446,46078.0,46077.0,0.1932081]
[1649180840893,0.19158446,46078.0,46077.0,0.8264211]
[1649180841287,0.19158446,46078.0,46077.0,0.9264211]
[1649180844370,0.09635935,46078.0,46077.0,0.9264211]
[1649180844568,0.09635935,46078.0,46077.0,1.0264211]
[1649180844669,0.00060441,46080.0,46078.0,1.7]
[1649180844769,0.00060441,46080.0,46079.0,0.822363]
[1649180844867,0.00060441,46080.0,46079.0,1.15974954]
[1649180845203,0.00060441,46080.0,46079.0,1.62890013]
[1649180845502,0.00060441,46080.0,46079.0,1.04446301]
[1649180845605,0.00060441,46080.0,46079.0,0.01085]
[1649180845805,0.00060441,46080.0,46078.0,0.01085]
[1649180846604,0.27785223,46080.0,46078.0,0.01085]
[1649180847855,0.27972381,46080.0,46078.0,0.01085]
[1649180847955,0.05674299,46080.0,46078.0,0.01085]
[1649180848056,0.00247599,46080.0,46078.0,0.01085]
[1649180849409,0.00247599,46080.0,46077.0,0.19368939]
[1649180849516,0.17997173,46080.0,46077.0,0.19368939]
[1649180849612,0.47749574,46079.0,46077.0,0.19368939]
[1649180849759,0.17749574,46078.0,46077.0,0.19368939]
[1649180849859,0.04917506,46080.0,46077.0,0.19368939]
[1649180849860,0.271084,46080.0,46077.0,0.19368939]
[1649180849958,0.325359,46080.0,46077.0,0.19368939]
[1649180850061,0.17743681,46078.0,46077.0,0.1932081]
[1649180850259,0.22113681,46078.0,46077.0,0.1932081]
[1649180850362,0.0437,46078.0,46077.0,0.1932081]
[1649180850961,0.22114245,46078.0,46077.0,0.1932081]
[1649180851160,0.0437,46078.0,46077.0,0.1932081]
[1649180851461,0.22114253,46078.0,46077.0,0.1932081]
[1649180851762,0.0437,46078.0,46077.0,0.1932081]
[1649180851914,0.22113973,46078.0,46077.0,0.1932081]
[1649180852703,0.0937,46078.0,46077.0,0.1932081]
[1649180852898,0.0437,46078.0,46077.0,0.1932081]
[1649180853097,0.04573144,46078.0,46077.0,0.1932081]
[1649180854001,0.22317073,46078.0,46077.0,0.1932081]
[1649180854503,0.32377514,46078.0,46077.0,0.1932081]
[1649180854603,0.36824479,46078.0,46077.0,0.1932081]
[1649180854702,0.46824479,46078.0,46077.0,0.1932081]
[1649180855102,0.4713992,46078.0,46077.0,0.1932081]
[1649180855403,0.24949026,46078.0,46077.0,0.1932081]
[1649180855505,0.4713992,46078.0,46077.0,0.1932081]
[1649180855754,0.24949026,46078.0,46077.0,0.1932081]
[1649180855853,0.14949026,46078.0,46077.0,0.1932081]
[1649180855957,0.09949026,46078.0,46077.0,0.1932081]
[1649180856056,0.22693007,46078.0,46077.0,0.1932081]
[1649180856258,0.27693007,46078.0,46077.0,0.1932081]
[1649180856749,0.09949026,46078.0,46077.0,0.1932081]
[1649180856951,0.04949026,46078.0,46077.0,0.1932081]
[1649180857048,0.3213992,46078.0,46077.0,0.1932081]
[1649180857197,0.09949026,46078.0,46077.0,0.1932081]
[1649180857299,0.3213992,46078.0,46077.0,0.1932081]
[1649180857804,0.09949026,46078.0,46077.0,0.1932081]
[1649180857898,0.3213992,46078.0,46077.0,0.1932081]
[1649180858248,0.3713992,46078.0,46077.0,0.1932081]
[1649180858550,0.3713992,46078.0,46077.0,0.1682081]
[1649180858850,0.4713992,46078.0,46077.0,0.1682081]
[1649180858952,0.81582257,46078.0,46077.0,0.1682081]
[1649180859151,0.79812666,46078.0,46077.0,0.1682081]
[1649180859705,0.79752225,46078.0,46077.0,0.1682081]
[1649180861066,0.69069814,46078.0,46077.0,0.1682081]
[1649180861163,0.78621949,46078.0,46077.0,0.1682081]
[1649180861464,1.0523916,46078.0,46077.0,0.1682081]
[1649180861564,0.78621949,46078.0,46077.0,0.1682081]
[1649180861867,1.05238839,46078.0,46077.0,0.1682081]
[1649180861967,0.75238839,46078.0,46077.0,0.1682081]
[1649180862165,0.3440894,46078.0,46077.0,0.1682081]
[1649180862516,0.6102583,46078.0,46077.0,0.1682081]
[1649180862817,0.3440894,46078.0,46077.0,0.1682081]
[1649180863220,0.6440894,46078.0,46077.0,0.1682081]
[1649180863322,0.66810301,46078.0,46077.0,0.1682081]
[1649180863421,0.93427191,46078.0,46077.0,0.1682081]
[1649180863619,0.81023309,46078.0,46077.0,0.1682081]
[1649180863960,1.12097534,46078.0,46077.0,0.1682081]
[1649180864163,1.12097534,46078.0,46075.0,0.0004813]
[1649180864262,0.57715191,46076.0,46075.0,0.0004813]
[1649180864362,0.80041419,46076.0,46075.0,0.0004813]
[1649180864462,0.054287,46073.0,46066.0,0.01]
[1649180864564,0.37015267,46068.0,46066.0,0.01]
[1649180864761,0.42015267,46068.0,46066.0,0.01]
[1649180865160,1.92996322,46068.0,46063.0,0.08692561]
[1649180865861,0.054287,46067.0,46063.0,0.08692561]
[1649180866363,0.097987,46067.0,46063.0,0.08692561]
[1649180866462,0.397987,46067.0,46063.0,0.08692561]
[1649180866967,0.447987,46067.0,46063.0,0.08692561]
[1649180867063,0.62543215,46067.0,46063.0,0.08692561]
[1649180867161,0.2793568,46066.0,46063.0,0.08692561]
[1649180867360,0.0437,46065.0,46063.0,0.08692561]
[1649180867461,0.29755622,46064.0,46063.0,0.08692561]
[1649180867655,0.39125622,46064.0,46063.0,0.08692561]
[1649180869309,0.0937,46064.0,46063.0,0.08692561]
[1649180870109,0.09586899,46064.0,46063.0,0.08692561]
[1649180870461,0.09586899,46064.0,46053.0,0.01086]
[1649180870462,0.00307866,46062.0,46053.0,0.01086]
[1649180870566,0.054298,46060.0,46053.0,0.01086]
[1649180871169,0.104298,46060.0,46052.0,0.00192]
[1649180871269,0.3,46059.0,46052.0,0.00192]
[1649180871425,0.0437,46059.0,46052.0,0.00192]
[1649180871613,0.0437,46059.0,46053.0,0.01086]
[1649180871913,0.0437,46059.0,46053.0,0.01140898]
[1649180872219,0.0437,46059.0,46053.0,0.31323776]
[1649180872416,0.04430441,46059.0,46053.0,0.31323776]
[1649180872664,0.04430441,46059.0,46054.0,0.28092527]
[1649180873068,0.04430441,46059.0,46054.0,0.28143799]
[1649180873767,0.04430441,46059.0,46055.0,0.27899234]
[1649180873968,0.04430441,46059.0,46054.0,0.28143799]
[1649180874067,0.04430441,46059.0,46054.0,0.28092527]
[1649180874267,0.00216636,46058.0,46055.0,0.00049251]
[1649180874969,0.00216636,46058.0,46051.0,0.00741251]
[1649180875218,0.00216636,46058.0,46051.0,0.00241251]
[1649180876019,0.00310307,46058.0,46051.0,0.00241251]
[1649180876119,0.26050366,46052.0,46051.0,0.00241251]
[1649180876319,0.054297,46056.0,46051.0,0.00241251]
[1649180877419,0.26192789,46055.0,46051.0,0.00241251]
[1649180877519,0.37053389,46055.0,46051.0,0.00241251]
[1649180877622,0.47053389,46055.0,46051.0,0.00241251]
[1649180877719,0.57053389,46055.0,46051.0,0.00241251]
[1649180877871,0.57053389,46055.0,46051.0,0.00292903]
[1649180877970,0.46192789,46055.0,46051.0,0.00292903]
[1649180878071,0.054301,46054.0,46051.0,0.00292903]
[1649180878177,0.054301,46054.0,46046.0,0.24763099]
[1649180878624,0.36192789,46055.0,46047.0,0.28899397]
[1649180879065,0.31192789,46055.0,46047.0,0.28899397]
[1649180879616,0.05,46055.0,46047.0,0.28899397]
[1649180879717,0.00545812,46054.0,46047.0,0.28899397]
[1649180881118,0.00545812,46054.0,46046.0,0.24763099]
[1649180882219,0.33366231,46051.0,46046.0,0.24763099]
[1649180882319,0.43366231,46051.0,46046.0,0.24763099]
[1649180882520,0.43366231,46051.0,46046.0,0.23763099]
[1649180882656,0.43366231,46051.0,46046.0,0.23814648]
[1649180883661,0.43366231,46051.0,46046.0,0.23763099]
[1649180883858,0.43366231,46051.0,46046.0,0.23815711]
[1649180884862,0.43366231,46051.0,46046.0,0.23763099]
[1649180885062,0.43366231,46051.0,46046.0,0.23815711]
[1649180885663,0.00216286,46050.0,46046.0,0.23815711]
[1649180886064,0.00216286,46050.0,46046.0,0.23763099]
[1649180887498,0.00216286,46050.0,46046.0,0.23812509]
[1649180887848,0.00276727,46050.0,46046.0,0.23812509]
[1649180888050,0.00216574,46049.0,46046.0,0.23812509]
[1649180888455,0.00216574,46049.0,46046.0,0.23763099]
[1649180890359,0.00216198,46048.0,46046.0,0.23763099]
[1649180890962,0.00216198,46048.0,46043.0,0.01086]
[1649180890963,0.00216198,46048.0,46044.0,0.322363]
[1649180891064,0.00216198,46048.0,46045.0,0.00047988]
[1649180892013,0.25819646,46046.0,46045.0,0.00047988]
[1649180892113,0.25819646,46046.0,46043.0,0.3154905]
[1649180892313,0.25819646,46046.0,46044.0,0.00047988]
[1649180893317,0.25819646,46046.0,46038.0,0.25324016]
[1649180893420,0.25819646,46046.0,46038.0,0.01086]
[1649180893521,0.25819646,46046.0,46043.0,0.00047989]
[1649180893958,0.00216066,46045.0,46043.0,0.00047989]
[1649180894460,0.00216066,46045.0,46042.0,0.30670794]
[1649180894661,0.00216066,46045.0,46042.0,0.30718915]
[1649180895664,0.00216066,46045.0,46042.0,0.30670794]
[1649180897517,0.25089148,46045.0,46042.0,0.30670794]
[1649180897756,0.2541794,46045.0,46042.0,0.30670794]
[1649180898959,0.00544858,46045.0,46042.0,0.30670794]
[1649180900210,0.00605299,46045.0,46042.0,0.30670794]
[1649180901270,0.0002678,46045.0,46042.0,0.30670794]
[1649180902009,0.35182971,46047.0,46042.0,0.30670794]
[1649180902560,0.00432259,46044.0,46042.0,0.30670794]
[1649180903765,0.00432259,46044.0,46041.0,0.00053032]
[1649180904066,0.00432259,46044.0,46037.0,0.06086]
[1649180904165,0.00432259,46044.0,46037.0,0.01086]
[1649180904268,0.00216023,46044.0,46037.0,0.01086]
[1649180904366,0.054307,46045.0,46040.0,0.00053033]
[1649180905377,0.054307,46045.0,46038.0,0.24845867]
[1649180905574,0.054307,46045.0,46040.0,0.00051058]
[1649180906230,0.00235294,46044.0,46040.0,0.00051058]
[1649180906526,0.00235294,46044.0,46037.0,0.01086]
[1649180906727,0.00235294,46044.0,46040.0,0.00051059]
[1649180907731,0.00235294,46044.0,46037.0,0.01086]
[1649180907981,0.00235294,46044.0,46040.0,0.00051059]
[1649180908906,0.00235294,46044.0,46037.0,0.00637059]
[1649180909153,0.00235294,46044.0,46040.0,0.00051192]
[1649180910158,0.00235294,46044.0,46036.0,0.01]
[1649180910257,0.00235294,46044.0,46037.0,0.32413771]
[1649180910610,0.25219786,46040.0,46037.0,0.32413771]
[1649180911058,0.00235294,46044.0,46037.0,0.32413771]
[1649180912011,0.30506161,46041.0,46037.0,0.32413771]
[1649180912754,0.30506161,46041.0,46037.0,0.32468685]
[1649180913305,0.30506161,46041.0,46037.0,0.00054914]
[1649180913811,0.30506161,46041.0,46036.0,0.01]
[1649180914009,0.30506161,46041.0,46037.0,0.00054914]
[1649180914259,0.00235075,46040.0,46037.0,0.00054914]
[1649180915010,0.00235075,46040.0,46036.0,0.01]
[1649180915261,0.00235075,46040.0,46036.0,0.01054915]
[1649180916213,0.00235075,46040.0,46036.0,0.01]
[1649180916460,0.00235075,46040.0,46036.0,0.01054915]
[1649180917351,0.00235075,46040.0,46036.0,0.01]
[1649180917656,0.00235075,46040.0,46036.0,0.01052789]
[1649180918456,0.00235075,46040.0,46039.0,0.18850984]
[1649180919957,0.00235075,46040.0,46036.0,0.01]
[1649180920907,0.25215802,46044.0,46036.0,0.01]
[1649180920908,0.10235312,46044.0,46036.0,0.01]
[1649180921010,0.10235312,46044.0,46036.0,0.20783733]
[1649180921209,0.10235312,46044.0,46036.0,0.20838602]
[1649180921516,0.10235312,46044.0,46036.0,0.01054869]
[1649180922061,0.0023502,46039.0,46036.0,0.01054869]
[1649180922160,0.0023502,46039.0,46036.0,0.01]
[1649180922363,0.0023502,46039.0,46038.0,0.00054868]
[1649180923362,0.0023502,46039.0,46036.0,0.01]
[1649180923566,0.0023502,46039.0,46036.0,0.01054869]
[1649180924610,0.0023502,46039.0,46036.0,0.01]
[1649180925164,0.3039236,46037.0,46036.0,0.01]
[1649180925763,0.0023502,46039.0,46036.0,0.01]
[1649180926765,0.23994695,46039.0,46036.0,0.01]
[1649180926865,0.23994695,46039.0,46037.0,0.24477804]
[1649180928112,0.0023502,46039.0,46037.0,0.24477804]
[1649180929260,0.24242545,46039.0,46037.0,0.24477804]
[1649180931017,0.0023502,46039.0,46037.0,0.24477804]
[1649180932063,0.28814343,46039.0,46037.0,0.24477804]
[1649180932162,0.0023502,46039.0,46037.0,0.24477804]
[1649180939006,0.0023502,46039.0,46034.0,0.04102451]
[1649180939107,0.01086,46038.0,46034.0,0.04102451]
[1649180939258,0.01086,46038.0,46036.0,0.00051101]
[1649180939259,0.05,46037.0,46036.0,0.00051101]
[1649180939363,0.05456,46038.0,46036.0,0.00051101]
[1649180939456,0.22440928,46039.0,46036.0,0.00051101]
[1649180939658,0.0023502,46039.0,46036.0,0.00051101]
[1649180940162,0.0023502,46039.0,46033.0,0.50064321]
[1649180940360,0.0023502,46039.0,46035.0,0.17256866]
[1649180940560,0.0023502,46039.0,46033.0,0.50064321]
[1649180941313,0.0023502,46039.0,46034.0,0.322363]
[1649180941414,0.0023502,46039.0,46035.0,0.322363]
[1649180941513,0.0023502,46039.0,46036.0,0.322363]
[1649180941617,0.0023502,46039.0,46037.0,0.29817669]
[1649180941721,0.0023502,46039.0,46038.0,0.322363]
[1649180943108,0.0023502,46039.0,46034.0,0.23652598]
[1649180943109,0.0132102,46039.0,46034.0,0.05]
[1649180943209,0.0132102,46039.0,46032.0,0.22103755]
[1649180943210,0.0023502,46039.0,46032.0,0.05]
[1649180943306,0.0023502,46039.0,46033.0,0.322363]
[1649180943606,0.0023502,46039.0,46033.0,0.312363]
[1649180944060,0.0023502,46039.0,46034.0,0.00054829]
[1649180944158,0.0023502,46039.0,46036.0,0.322363]
[1649180944359,0.0023502,46039.0,46036.0,0.2919289]
[1649180944915,0.010245,46038.0,46035.0,0.18427152]
[1649180945065,0.010245,46038.0,46034.0,0.00054829]
[1649180945217,0.22440928,46039.0,46025.0,0.6556404]
[1649180945310,0.010245,46038.0,46034.0,0.0005483]
[1649180945412,0.28083152,46038.0,46034.0,0.0005483]
[1649180945715,0.5012827,46038.0,46034.0,0.0005483]
[1649180945961,0.78427414,46038.0,46034.0,0.0005483]
[1649180946261,0.78427414,46038.0,46028.0,0.20684266]
[1649180946262,0.22194925,46037.0,46028.0,0.20684266]
[1649180946411,0.22194925,46037.0,46034.0,0.00054829]
[1649180946561,0.22194925,46037.0,46028.0,0.20239095]
[1649180946763,0.01086,46036.0,46024.0,0.22103755]
[1649180946863,0.008633,46035.0,46024.0,0.22103755]
[1649180946972,0.01086,46034.0,46024.0,0.22103755]
[1649180947063,0.01086,46034.0,46022.0,0.00219372]
[1649180947064,0.0437,46034.0,46022.0,0.00219372]
[1649180947163,0.34384733,46033.0,46022.0,0.00219372]
[1649180947412,1.58850409,46029.0,46022.0,0.00219372]
[1649180947613,1.63850409,46029.0,46021.0,0.01]
[1649180947810,0.2391051,46025.0,46021.0,0.01]
[1649180948366,0.2391051,46025.0,46018.0,0.0002619]
[1649180948367,0.65,46023.0,46018.0,0.0002619]
[1649180948465,0.308633,46024.0,46018.0,0.0002619]
[1649180948466,0.008633,46022.0,46018.0,0.0002619]
[1649180948562,0.008633,46021.0,46018.0,0.0002619]
[1649180948671,0.01086,46020.0,46018.0,0.0002619]
[1649180948764,0.0437,46022.0,46018.0,0.0002619]
[1649180948765,0.008633,46019.0,46018.0,0.0002619]
[1649180948862,0.008633,46019.0,46018.0,0.00053484]
[1649180949212,0.019503,46019.0,46018.0,0.00053484]
[1649180949314,0.67613423,46019.0,46018.0,0.00053484]
[1649180949913,0.67613423,46019.0,46018.0,0.0002619]
[1649180950015,0.32092321,46019.0,46018.0,0.0002619]
[1649180950477,0.36462321,46019.0,46018.0,0.0002619]
[1649180950579,0.65599021,46019.0,46018.0,0.0002619]
[1649180950681,0.66462321,46019.0,46018.0,0.0002619]
[1649180950780,0.35599021,46019.0,46018.0,0.0002619]
[1649180950879,0.05638286,46019.0,46018.0,0.0002619]
[1649180950981,0.00056665,46011.0,46010.0,0.001]
[1649180951080,0.00056665,46011.0,46010.0,0.324106]
[1649180951630,0.00056665,46011.0,46010.0,0.54824928]
[1649180951730,0.00056665,46011.0,46010.0,0.001]
[1649180951831,0.00056665,46011.0,46010.0,0.324106]
[1649180952230,0.00056665,46011.0,46010.0,0.001]
[1649180952330,0.00056665,46011.0,46010.0,0.324106]
[1649180952733,0.00056665,46011.0,46010.0,0.001]
[1649180952831,0.00056665,46011.0,46010.0,0.324106]
[1649180953131,0.00056665,46011.0,46010.0,0.001]
[1649180954852,0.00237512,46011.0,46010.0,0.001]
[1649180954954,0.08301512,46011.0,46010.0,0.001]
[1649180955703,0.08301512,46011.0,45996.0,0.50675657]
[1649180955704,0.320639,46003.0,45996.0,0.50675657]
[1649180955804,0.18669662,46003.0,46002.0,0.323106]
[1649180958965,0.1885007,46003.0,46002.0,0.57964887]
[1649180959362,0.1885007,46003.0,46002.0,0.323106]
[1649180959465,0.1885007,46003.0,46002.0,0.4858363]
[1649180960416,0.1885007,46003.0,46002.0,0.74614285]
[1649180961117,0.19030959,46003.0,46002.0,0.74614285]
[1649180961218,0.19030959,46003.0,46002.0,0.4858363]
[1649180961557,0.19030959,46003.0,46002.0,0.4808363]
[1649180962162,0.19030959,46003.0,46002.0,0.7090912]
[1649180962263,0.19030959,46003.0,46002.0,0.4808363]
[1649180963212,0.19030959,46003.0,46002.0,0.5308363]
[1649180964113,0.19030959,46003.0,46002.0,0.82816515]
[1649180964214,0.00056665,46011.0,46004.0,0.05433]
[1649180964318,0.0567439,46025.0,46010.0,0.29734591]
[1649180964319,0.01086,46023.0,46010.0,0.29734591]
[1649180964412,0.9099,46024.0,46013.0,0.0543269]
[1649180964413,0.3494,46024.0,46013.0,0.0543269]
[1649180964518,0.5898,46031.0,46014.0,0.63164036]
[1649180964519,0.7811,46028.0,46014.0,0.63164036]
[1649180964613,0.7811,46028.0,46015.0,0.323281]
[1649180964817,0.7811,46028.0,46016.0,0.323281]
[1649180964915,0.7811,46028.0,46017.0,0.323281]
[1649180965017,0.220775,46025.0,46020.0,0.50439175]
[1649180965179,0.220775,46025.0,46020.0,0.28173369]
[1649180965675,0.01086,46030.0,46020.0,0.28173369]
[1649180965978,0.065191,46029.0,46016.0,0.05]
[1649180966081,0.313606,46028.0,46016.0,0.05]
[1649180966178,0.313606,46028.0,46014.0,0.00052962]
[1649180966179,0.40812023,46019.0,46014.0,0.00052962]
[1649180966280,0.01086,46027.0,46014.0,0.00052962]
[1649180966281,0.013606,46018.0,46014.0,0.00052962]
[1649180966678,0.26058622,46015.0,46014.0,0.00052962]
[1649180966779,0.26058622,46015.0,46012.0,0.05]
[1649180966978,0.26058622,46015.0,46014.0,0.00052959]
[1649180967079,0.03299515,46016.0,46014.0,0.00052959]
[1649180967932,0.03299515,46016.0,46010.0,0.23805702]
[1649180968134,0.03299515,46016.0,46013.0,0.00050208]
[1649180968332,0.28841277,46014.0,46013.0,0.00050208]
[1649180969007,0.03299515,46016.0,46013.0,0.00050208]
[1649180969206,0.00147151,46015.0,46010.0,0.29239241]
[1649180969409,0.00147151,46015.0,46011.0,0.00050209]
[1649180969962,0.02594698,46016.0,46011.0,0.00050209]
[1649180970160,0.32700355,46016.0,46011.0,0.22768997]
[1649180970259,0.32700355,46016.0,46011.0,0.00050209]
[1649180970358,0.32700355,46016.0,46010.0,0.29239241]
[1649180970460,0.02594698,46016.0,46010.0,0.29239241]
[1649180970608,0.02594698,46016.0,46011.0,0.00050209]
[1649180971212,0.00146549,46014.0,46011.0,0.00050209]
[1649180971410,0.00146549,46014.0,46012.0,0.323281]
[1649180971510,0.00146549,46014.0,46011.0,0.2367661]
[1649180971612,0.00146549,46014.0,46011.0,0.323281]
[1649180971710,0.00146549,46014.0,46010.0,0.29239241]
[1649180971810,0.00146549,46014.0,46010.0,0.29290429]
[1649180972111,0.00146549,46014.0,46010.0,0.28790429]
[1649180972657,0.250754,46012.0,46010.0,0.28790429]
[1649180972758,0.250754,46012.0,46010.0,0.28739241]
[1649180972857,0.00146549,46014.0,46010.0,0.28739241]
[1649180972958,0.00146549,46014.0,46010.0,0.28790429]
[1649180973057,0.02594698,46016.0,46010.0,0.28790429]
[1649180973863,0.29471403,46014.0,46010.0,0.28790429]
[1649180973961,0.29471403,46014.0,46010.0,0.28739241]
[1649180974062,0.29471403,46014.0,46010.0,0.23805702]
[1649180974161,0.29471403,46014.0,46011.0,0.00051188]
[1649180975219,0.29471403,46014.0,46002.0,0.01087]
[1649180975316,0.02594698,46016.0,46002.0,0.01087]
[1649180975317,0.30485897,46006.0,46003.0,0.26645167]
[1649180975425,0.30485897,46006.0,46004.0,0.334151]
[1649180975619,0.30485897,46006.0,46004.0,0.384151]
[1649180975971,0.3,46014.0,46004.0,0.06087]
[1649180976071,0.054346,46015.0,46004.0,0.06087]
[1649180976220,0.22877936,46012.0,46004.0,0.01087]
[1649180976320,0.3,46011.0,46004.0,0.01087]
[1649180976571,0.3,46011.0,46000.0,0.05]
[1649180976572,0.3,46011.0,46007.0,0.00051123]
[1649180976669,0.31087,46011.0,46007.0,0.00051123]
[1649180976867,0.24728479,46010.0,46007.0,0.00051123]
[1649180977622,0.24728479,46010.0,46001.0,0.22594228]
[1649180977819,0.30163779,46010.0,46006.0,0.00051123]
[1649180978823,0.30163779,46010.0,46001.0,0.22594228]
[1649180979020,0.30163779,46010.0,46006.0,0.00051173]
[1649180979122,0.013606,46009.0,46006.0,0.00051173]
[1649180979221,0.30163779,46010.0,46006.0,0.00051173]
[1649180979822,0.24728479,46010.0,46006.0,0.00051173]
[1649180980022,0.24728479,46010.0,46003.0,0.25398744]
[1649180980175,0.24728479,46010.0,46006.0,0.00051173]
[1649180980667,0.24728479,46010.0,46006.0,0.10918641]
[1649180980865,0.01087,46015.0,46008.0,0.26209963]
[1649180980970,0.01087,46015.0,46002.0,0.14568675]
[1649180981067,0.01087,46015.0,46005.0,0.22832133]
[1649180981365,0.013606,46014.0,46009.0,0.00051171]
[1649180981471,0.013606,46012.0,46009.0,0.00051171]
[1649180981570,0.013606,46010.0,46009.0,0.00051171]
[1649180981766,0.013606,46011.0,46009.0,0.00051171]
[1649180981868,0.013606,46010.0,46009.0,0.00051171]
[1649180981966,0.21788325,46011.0,46009.0,0.00051171]
[1649180982066,0.26788325,46011.0,46009.0,0.00051171]
[1649180982371,0.26788325,46011.0,46005.0,0.22832133]
[1649180983668,0.26788325,46011.0,46006.0,0.323281]
[1649180983669,0.05,46011.0,46006.0,0.323281]
[1649180983773,0.01087,46015.0,46007.0,0.323281]
[1649180983917,0.01087,46015.0,46005.0,0.28266053]
[1649180984117,0.01087,46015.0,46006.0,0.29756971]
[1649180984216,0.07594698,46016.0,46007.0,0.32473817]
[1649180984420,0.02594698,46016.0,46007.0,0.32473817]
[1649180984619,0.02594698,46016.0,46012.0,0.22777735]
[1649180984818,0.02594698,46016.0,46013.0,0.2364557]
[1649180993255,0.02594698,46016.0,46013.0,0.29078472]
[1649180994559,0.1775471,46018.0,46014.0,0.800953]
[1649180994655,0.1775471,46018.0,46015.0,0.01087]
[1649180994761,0.17807838,46019.0,46016.0,0.323281]
[1649180994858,0.00053128,46019.0,46017.0,0.29747504]
[1649180994958,0.00053128,46019.0,46018.0,0.323281]
[1649180995060,0.00053128,46019.0,46018.0,0.373281]
[1649180995580,0.00053128,46019.0,46018.0,0.6257092]
[1649180995677,0.1775471,46026.0,46018.0,0.6257092]
[1649180995776,0.1775471,46027.0,46019.0,0.01087]
[1649180995878,0.1775471,46027.0,46020.0,0.323281]
[1649180995981,0.1775471,46027.0,46022.0,0.323281]
[1649180996178,0.1775471,46027.0,46022.0,0.373281]
[1649180996487,0.1775471,46027.0,46022.0,0.05]
[1649180996683,0.1775471,46026.0,46021.0,0.28245469]